[Event "26th Zadar Open 2019"]
[Site "Zadar"]
[Date "2019.12.20"]
[Round "7.22"]
[White "Ly, Dominik"]
[Black "Sutkovic, Damir"]
[Result "1-0"]
[ECO "A29"]
[WhiteElo "2220"]
[BlackElo "2292"]
[Annotator "NA"]
[PlyCount "55"]
[EventDate "2019.12.15"]
[EventType "swiss"]
[EventCountry "CRO"]
[SourceTitle "playchess.com"]
[Source "ChessBase"]
[SourceQuality "1"]
[TimeControl "40/5400+30:1800+30"]

1. c4 {[%emt 0:03:30]} Nf6 {[%emt 0:00:30]} 2. Nc3 {[%emt 0:00:30]} d6 {[%emt 0:00:00]} 3. d4 {[%emt 0:00:00]} e5 {[%emt 0:00:00]} 4. Nf3 {[%emt 0:00:00]} Nc6 {[%emt 0:00:30]} 5. g3 {[%emt 0:04:30]} g6 {[%emt 0:07:30]} 6. Bg2 {[%emt 0:00:30]} exd4 {[%emt 0:02:30]} 7. Nxd4 {[%emt 0:00:30]} Nxd4 {[%emt 0:00:30]} 8. Qxd4 {[%emt 0:00:30]} Bg7 {[%emt 0:00:30]} 9. b3 {[%emt 0:00:30]} O-O $14 {[%emt 0:00:30]} 10. Bb2 {[%emt 0:00:30]} a6 {[%emt 0:03:30]} 11. O-O {[%emt 0:00:30]} Rb8 {[%emt 0:02:30]} 12. Rfd1 {[%emt 0:01:30]} Be6 {[%emt 0:07:30]} 13. Rac1 {[%emt 0:02:30]} Re8 {[%emt 0:03:30]} 14. e3 {[%emt 0:06:30]} Bg4 {[%emt 0:08:30]} 15. Re1 {[%emt 0:02:30]} Ne4 {[%emt 0:03:30]} 16. Qd3 {[%emt 0:01:30]} Ng5 {[%emt 0:04:30]} 17. e4 {[%emt 0:19:30]} Qf6 {[%emt 0:13:30]} 18. Nd1 {[%emt 0:08:30]} Nf3+ {[%emt 0:00:30]} 19. Bxf3 {[%emt 0:00:30]} Qxf3 {[%emt 0:00:30]} 20. Re3 {[%emt 0:09:30]} Bxb2 {[%emt 0:00:30]} 21. Rxf3 {[%emt 0:00:30]} Bxc1 {[%emt 0:00:00]} 22. Re3 {[%emt 0:00:00]} Bxe3 {[%emt 0:17:00]} 23. Nxe3 {[%emt 0:00:00]} Be6 {[%emt 0:00:30]} 24. f4 {[%emt 0:01:30]} f6 {[%emt 0:07:13]} 25. f5 {[%emt 0:00:30]} gxf5 {[%emt 0:00:45]} 26. exf5 {[%emt 0:00:30]} Bf7 {[%emt 0:05:08]} 27. Ng4 {[%emt 0:00:30]} Kg7 {[%emt 0:00:06]} 28. Qd2 {[%emt 0:01:30]} 1-0

[Event "26th Zadar Open 2019"]
[Site "Zadar"]
[Date "2019.12.20"]
[Round "7.23"]
[White "Dimitrov, Vladimir"]
[Black "Gelbenegger, Patrick"]
[Result "1-0"]
[ECO "E48"]
[WhiteElo "2285"]
[BlackElo "2267"]
[Annotator "NA"]
[PlyCount "81"]
[EventDate "2019.12.15"]
[EventType "swiss"]
[EventCountry "CRO"]
[SourceTitle "playchess.com"]
[Source "ChessBase"]
[SourceQuality "1"]
[TimeControl "40/5400+30:1800+30"]

1. d4 {[%emt 0:01:30]} Nf6 {[%emt 0:00:30]} 2. c4 {[%emt 0:00:00]} e6 {[%emt 0:00:00]} 3. Nc3 {[%emt 0:00:00]} Bb4 {[%emt 0:00:00]} 4. e3 {[%emt 0:00:30]} O-O {[%emt 0:00:30]} 5. Bd3 {[%emt 0:00:00]} d5 {[%emt 0:07:30]} 6. cxd5 {[%emt 0:03:00]} exd5 $11 {[%emt 0:03:30]} 7. Nge2 {[%emt 0:00:30]} c6 {[%emt 0:02:30]} 8. O-O {[%emt 0:01:30]} Bd6 {[%emt 0:05:30]} 9. Ng3 {[%emt 0:05:30]} Qc7 {[%emt 0:18:30]} 10. Bd2 {[%emt 0:04:30]} Bg4 {[%emt 0:06:30]} 11. Qc2 {[%emt 0:10:30]} h5 {[%emt 0:03:30]} 12. f4 {[%emt 0:06:30]} Re8 {[%emt 0:09:30]} 13. h3 {[%emt 0:02:30]} Bc8 {[%emt 0:02:30]} 14. Rae1 {[%emt 0:06:30]} h4 {[%emt 0:11:30]} 15. Nh1 {[%emt 0:00:30]} Nbd7 {[%emt 0:05:30]} 16. Re2 {[%emt 0:01:30]} Nh5 {[%emt 0:02:24]} 17. Qd1 {[%emt 0:02:30]} Nf8 {[%emt 0:02:18]} 18. Qe1 {[%emt 0:03:30]} Qd8 {[%emt 0:01:28]} 19. Qf2 {[%emt 0:01:30]} f5 {[%emt 0:03:22]} 20. Be1 {[%emt 0:02:30]} Ng6 {[%emt 0:01:28]} 21. Qf3 {[%emt 0:01:30]} Nf6 {[%emt 0:00:38]} 22. g3 {[%emt 0:00:30]} Ne4 {[%emt 0:03:12]} 23. gxh4 {[%emt 0:08:30]} Qf6 {[%emt 0:00:48]} 24. h5 {[%emt 0:01:30]} Nh4 {[%emt 0:01:59]} 25. Bxh4 {[%emt 0:00:30]} Qxh4 {[%emt 0:00:05]} 26. Rg2 {[%emt 0:00:30]} Be6 {[%emt 0:01:07]} 27. Kh2 {[%emt 0:01:30]} Be7 {[%emt 0:03:35]} 28. Rfg1 {[%emt 0:04:30]} Bf6 {[%emt 0:00:27]} 29. Ng3 {[%emt 0:00:00]} Kf7 {[%emt 0:00:53]} 30. Be2 {[%emt 0:05:00]} Rh8 {[%emt 0:01:30]} 31. Qf1 {[%emt 0:02:30]} Rh6 {[%emt 0:00:21]} 32. Ngxe4 {[%emt 0:01:30]} dxe4 {[%emt 0:00:43]} 33. Nxe4 {[%emt 0:03:30]} fxe4 {[%emt 0:01:15]} 34. f5 {[%emt 0:00:00]} Bd5 {[%emt 0:01:12]} 35. Rg4 {[%emt 0:00:00]} Rxh5 {[%emt 0:00:42]} 36. Rxh4 {[%emt 0:01:30]} Rxh4 {[%emt 0:00:05]} 37. Bc4 {[%emt 0:00:32]} Rah8 {[%emt 0:00:25]} 38. Bxd5+ {[%emt 0:00:40]} cxd5 {[%emt 0:00:06]} 39. Rg3 {[%emt 0:00:42]} Bd8 {[%emt 0:00:53]} 40. Qb5 {[%emt 0:00:14]} Bc7 {[%emt 0:00:18]} 41. Qd7+ {[%emt 0:30:22]} 1-0

[Event "26th Zadar Open 2019"]
[Site "Zadar"]
[Date "2019.12.20"]
[Round "7.25"]
[White "Khalakhan, Jurij"]
[Black "Hrescak, Ivana"]
[Result "0-1"]
[ECO "A03"]
[WhiteElo "2240"]
[BlackElo "2194"]
[Annotator "NA"]
[PlyCount "89"]
[EventDate "2019.12.15"]
[EventType "swiss"]
[EventCountry "CRO"]
[SourceTitle "playchess.com"]
[Source "ChessBase"]
[SourceQuality "1"]
[TimeControl "40/5400+30:1800+30"]

1. f4 {[%emt 0:00:30]} c5 {[%emt 0:00:30]} 2. Nf3 {[%emt 0:00:00]} g6 {[%emt 0:01:30]} 3. g3 {[%emt 0:04:00]} Bg7 {[%emt 0:00:00]} 4. d3 {[%emt 0:00:00]} d5 {[%emt 0:05:00]} 5. Bg2 {[%emt 0:00:00]} Nf6 {[%emt 0:01:30]} 6. O-O {[%emt 0:00:30]} O-O {[%emt 0:00:30]} 7. Nc3 $11 {[%emt 0:02:30]} d4 {[%emt 0:02:30]} 8. Ne4 {[%emt 0:02:30]} Qc7 {[%emt 0:04:30]} 9. Nxf6+ {[%emt 0:03:30]} Bxf6 {[%emt 0:00:30]} 10. Rb1 {[%emt 0:04:30]} Be6 {[%emt 0:11:30]} 11. b3 {[%emt 0:01:30]} Na6 {[%emt 0:05:30]} 12. a3 {[%emt 0:01:30]} Rad8 {[%emt 0:02:30]} 13. Ng5 {[%emt 0:10:30]} Bd5 {[%emt 0:03:30]} 14. Ne4 {[%emt 0:02:30]} Bg7 {[%emt 0:00:30]} 15. f5 {[%emt 0:00:00]} Qc6 {[%emt 0:02:30]} 16. Bg5 {[%emt 0:01:00]} f6 {[%emt 0:03:30]} 17. Bd2 {[%emt 0:01:30]} gxf5 {[%emt 0:00:30]} 18. Rxf5 {[%emt 0:00:30]} e6 {[%emt 0:03:30]} 19. Rf2 {[%emt 0:02:30]} Nc7 {[%emt 0:03:30]} 20. g4 {[%emt 0:05:30]} Nb5 {[%emt 0:02:30]} 21. a4 {[%emt 0:06:30]} Nd6 {[%emt 0:00:30]} 22. Ng3 {[%emt 0:00:30]} f5 {[%emt 0:07:30]} 23. g5 {[%emt 0:10:30]} Nf7 {[%emt 0:09:30]} 24. Nh5 {[%emt 0:15:30]} Ne5 {[%emt 0:02:30]} 25. h3 {[%emt 0:02:30]} Rd7 {[%emt 0:02:30]} 26. Qf1 {[%emt 0:01:30]} Ng6 {[%emt 0:01:30]} 27. Re1 {[%emt 0:02:47]} Rdf7 {[%emt 0:03:30]} 28. Nxg7 {[%emt 0:03:00]} Kxg7 {[%emt 0:00:30]} 29. e3 {[%emt 0:00:36]} Kg8 {[%emt 0:02:26]} 30. Bxd5 {[%emt 0:04:58]} Qxd5 {[%emt 0:00:13]} 31. Qg2 {[%emt 0:00:08]} Qxg2+ {[%emt 0:07:16]} 32. Kxg2 {[%emt 0:00:58]} e5 {[%emt 0:00:12]} 33. Ref1 {[%emt 0:03:11]} b6 {[%emt 0:02:05]} 34. Rh1 {[%emt 0:01:54]} e4 {[%emt 0:03:32]} 35. exd4 {[%emt 0:01:31]} cxd4 {[%emt 0:00:04]} 36. Bf4 {[%emt 0:00:40]} e3 {[%emt 0:00:38]} 37. Rff1 {[%emt 0:00:49]} Rc8 {[%emt 0:00:12]} 38. h4 {[%emt 0:00:36]} Rxc2+ {[%emt 0:00:48]} 39. Kg3 {[%emt 0:01:21]} Rc3 {[%emt 0:02:07]} 40. Rd1 {[%emt 0:03:28]} Re7 {[%emt 0:04:19]} 41. h5 {[%emt 0:00:00]} Nxf4 {[%emt 0:10:38]} 42. Kxf4 {[%emt 0:00:03]} e2 {[%emt 0:00:00]} 43. Rde1 {[%emt 0:00:30]} Rxd3 {[%emt 0:00:00]} 44. g6 {[%emt 0:00:30]} Rde3 {[%emt 0:06:43]} 45. Kg5 {[%emt 0:00:30]} 0-1

[Event "26th Zadar Open 2019"]
[Site "Zadar"]
[Date "2019.12.21"]
[Round "8.1"]
[White "Brkic, Ante"]
[Black "Bhambure, Shantanu"]
[Result "1/2-1/2"]
[ECO "B51"]
[WhiteElo "2576"]
[BlackElo "2340"]
[Annotator "ChessBase"]
[PlyCount "31"]
[EventDate "2019.12.15"]
[EventType "swiss"]
[EventCountry "CRO"]
[SourceTitle "playchess.com"]
[Source "ChessBase"]
[SourceQuality "1"]
[TimeControl "40/5400+30:1800+30"]

1. e4 {[%emt 0:00:30]} c5 {[%emt 0:00:30]} 2. Nf3 {[%emt 0:00:00]} d6 {[%emt 0:00:00]} 3. Bb5+ {[%emt 0:00:00]} Nd7 {[%emt 0:00:00]} 4. d4 {[%emt 0:00:00]} cxd4 {[%emt 0:00:30]} 5. Qxd4 {[%emt 0:00:00]} a6 {[%emt 0:00:00]} 6. Bxd7+ {[%emt 0:00:30]} Bxd7 {[%emt 0:00:00]} 7. Nc3 {[%emt 0:00:00]} e5 {[%emt 0:01:30]} 8. Qd3 {[%emt 0:01:00]} h6 {[%emt 0:00:30]} 9. O-O {[%emt 0:00:30]} Nf6 {[%emt 0:00:30]} 10. Nd2 {[%emt 0:00:30]} Rc8 {[%emt 0:03:30]} 11. Nc4 {[%emt 0:00:30]} Be6 {[%emt 0:00:30]} 12. Ne3 {[%emt 0:00:30]} Be7 {[%emt 0:00:30]} 13. a4 {[%emt 0:01:30]} O-O {[%emt 0:01:30]} 14. Rd1 {[%emt 0:00:30]} Rc5 {[%emt 0:05:30]} 15. Bd2 {[%emt 0:10:30]} Qc8 {[%emt 0:04:30]} 16. b3 {[%emt 0:21:30]} 1/2-1/2

[Event "26th Zadar Open 2019"]
[Site "Zadar"]
[Date "2019.12.21"]
[Round "8.2"]
[White "Blohberger, Felix"]
[Black "Kozul, Zdenko"]
[Result "1/2-1/2"]
[ECO "E76"]
[WhiteElo "2434"]
[BlackElo "2590"]
[Annotator "ChessBase"]
[PlyCount "70"]
[EventDate "2019.12.15"]
[EventType "swiss"]
[EventCountry "CRO"]
[SourceTitle "playchess.com"]
[Source "ChessBase"]
[SourceQuality "1"]
[TimeControl "40/5400+30:1800+30"]

1. d4 {[%emt 0:00:30]} Nf6 {[%emt 0:00:30]} 2. c4 {[%emt 0:00:00]} g6 {[%emt 0:00:30]} 3. Nc3 {[%emt 0:00:00]} Bg7 {[%emt 0:00:30]} 4. e4 {[%emt 0:00:00]} d6 {[%emt 0:00:00]} 5. f4 {[%emt 0:00:00]} O-O {[%emt 0:07:00]} 6. Nf3 {[%emt 0:00:30]} Na6 {[%emt 0:00:30]} 7. Bd3 {[%emt 0:00:30]} e5 {[%emt 0:01:30]} 8. fxe5 {[%emt 0:00:30]} dxe5 {[%emt 0:00:00]} 9. d5 {[%emt 0:00:00]} c6 {[%emt 0:02:00]} 10. O-O {[%emt 0:00:00]} Ng4 {[%emt 0:11:30]} 11. Kh1 {[%emt 0:01:30]} f5 {[%emt 0:21:30]} 12. h3 {[%emt 0:12:30]} Nf6 {[%emt 0:00:30]} 13. exf5 {[%emt 0:05:30]} e4 {[%emt 0:04:30]} 14. Nxe4 {[%emt 0:01:30]} Nxe4 {[%emt 0:00:30]} 15. Bxe4 {[%emt 0:00:00]} Nc5 {[%emt 0:00:30]} 16. Bc2 {[%emt 0:09:00]} Bxf5 {[%emt 0:01:30]} 17. Be3 {[%emt 0:22:30]} Ne4 {[%emt 0:10:30]} 18. Bxe4 {[%emt 0:05:30]} Bxe4 {[%emt 0:00:00]} 19. Ng5 {[%emt 0:01:30]} Rxf1+ {[%emt 0:03:00]} 20. Qxf1 {[%emt 0:00:00]} Qe7 {[%emt 0:00:30]} 21. Nxe4 {[%emt 0:13:00]} Qxe4 {[%emt 0:00:30]} 22. Qf4 {[%emt 0:00:30]} cxd5 {[%emt 0:13:30]} 23. Qxe4 {[%emt 0:03:30]} dxe4 {[%emt 0:00:00]} 24. Rd1 {[%emt 0:00:30]} Bxb2 {[%emt 0:01:00]} 25. Rb1 {[%emt 0:00:00]} Be5 {[%emt 0:00:30]} 26. Rxb7 {[%emt 0:00:00]} Rd8 {[%emt 0:06:35]} 27. Kg1 {[%emt 0:00:30]} Rd3 {[%emt 0:00:50]} 28. Kf2 {[%emt 0:04:30]} Rc3 {[%emt 0:01:53]} 29. Rxa7 {[%emt 0:02:31]} Rxc4 {[%emt 0:01:59]} 30. a4 {[%emt 0:00:31]} g5 {[%emt 0:04:38]} 31. a5 {[%emt 0:04:37]} Bf4 {[%emt 0:02:14]} 32. Bxf4 {[%emt 0:00:57]} gxf4 {[%emt 0:00:10]} 33. a6 {[%emt 0:00:02]} Rc2+ {[%emt 0:00:29]} 34. Kf1 {[%emt 0:00:07]} Rc1+ {[%emt 0:01:24]} 35. Ke2 {[%emt 0:00:09]} Rc2+ {[%emt 0:00:05]} 1/2-1/2

[Event "26th Zadar Open 2019"]
[Site "Zadar"]
[Date "2019.12.21"]
[Round "8.3"]
[White "Mosesov, Danyil"]
[Black "Saric, Ante"]
[Result "0-1"]
[ECO "E52"]
[WhiteElo "2290"]
[BlackElo "2556"]
[Annotator "ChessBase"]
[PlyCount "86"]
[EventDate "2019.12.15"]
[EventType "swiss"]
[EventCountry "CRO"]
[SourceTitle "playchess.com"]
[Source "ChessBase"]
[SourceQuality "1"]
[TimeControl "40/5400+30:1800+30"]

1. d4 {[%emt 0:00:30]} e6 {[%emt 0:00:30]} 2. c4 {[%emt 0:00:00]} Nf6 {[%emt 0:00:00]} 3. Nc3 {[%emt 0:00:00]} Bb4 {[%emt 0:00:00]} 4. e3 {[%emt 0:00:00]} O-O {[%emt 0:00:30]} 5. Bd2 {[%emt 0:00:00]} d5 {[%emt 0:00:30]} 6. Nf3 {[%emt 0:00:00]} b6 {[%emt 0:00:30]} 7. cxd5 {[%emt 0:00:00]} exd5 {[%emt 0:00:00]} 8. Bd3 {[%emt 0:00:30]} Bb7 {[%emt 0:00:00]} 9. Rc1 {[%emt 0:00:00]} Be7 {[%emt 0:00:30]} 10. O-O {[%emt 0:00:00]} c5 {[%emt 0:00:30]} 11. Ne5 {[%emt 0:02:30]} Nc6 {[%emt 0:00:30]} 12. Be1 {[%emt 0:00:00]} a6 {[%emt 0:00:30]} 13. f3 {[%emt 0:05:00]} b5 {[%emt 0:01:30]} 14. Bf2 {[%emt 0:06:30]} Qb6 {[%emt 0:07:30]} 15. Bb1 {[%emt 0:07:30]} Rad8 {[%emt 0:09:30]} 16. Qc2 {[%emt 0:09:30]} c4 {[%emt 0:07:30]} 17. Rcd1 {[%emt 0:08:30]} g6 {[%emt 0:02:30]} 18. Rfe1 {[%emt 0:06:30]} b4 {[%emt 0:09:30]} 19. Na4 {[%emt 0:07:30]} Qb5 {[%emt 0:02:30]} 20. Nxc6 {[%emt 0:04:30]} Bxc6 {[%emt 0:02:30]} 21. b3 {[%emt 0:00:00]} Rfe8 {[%emt 0:05:30]} 22. e4 {[%emt 0:07:00]} dxe4 {[%emt 0:06:30]} 23. fxe4 {[%emt 0:00:00]} Ng4 {[%emt 0:01:30]} 24. d5 {[%emt 0:03:00]} Bd7 {[%emt 0:00:30]} 25. Bd4 {[%emt 0:04:30]} Bd6 {[%emt 0:06:30]} 26. h3 {[%emt 0:02:30]} Ne5 {[%emt 0:00:30]} 27. Qf2 {[%emt 0:00:00]} Qb8 {[%emt 0:03:30]} 28. Nb6 {[%emt 0:04:00]} cxb3 {[%emt 0:05:30]} 29. axb3 {[%emt 0:00:00]} Bb5 {[%emt 0:00:30]} 30. Rc1 {[%emt 0:09:59]} Nd7 {[%emt 0:00:30]} 31. Nxd7 {[%emt 0:02:17]} Rxd7 {[%emt 0:00:30]} 32. e5 {[%emt 0:10:38]} Bxe5 {[%emt 0:00:30]} 33. Rxe5 {[%emt 0:00:08]} Rxe5 {[%emt 0:00:30]} 34. Qf6 {[%emt 0:00:01]} Rdxd5 {[%emt 0:00:30]} 35. Bf5 {[%emt 0:01:01]} Rxd4 {[%emt 0:11:30]} 36. Rc8+ {[%emt 0:00:05]} Qxc8 {[%emt 0:00:01]} 37. Bxc8 {[%emt 0:00:02]} Rd1+ {[%emt 0:00:18]} 38. Kh2 {[%emt 0:00:07]} Ree1 {[%emt 0:00:07]} 39. Bg4 {[%emt 0:02:44]} Be2 {[%emt 0:01:15]} 40. Bc8 {[%emt 0:02:20]} Rh1+ {[%emt 0:00:39]} 41. Kg3 {[%emt 0:30:02]} Rd3+ {[%emt 0:00:40]} 42. Kh4 {[%emt 0:00:00]} h6 {[%emt 0:00:30]} 43. Bg4 {[%emt 0:00:00]} g5+ {[%emt 0:00:30]} 0-1

[Event "26th Zadar Open 2019"]
[Site "Zadar"]
[Date "2019.12.21"]
[Round "8.4"]
[White "Predojevic, Borki"]
[Black "Doric, Darko"]
[Result "1/2-1/2"]
[ECO "B40"]
[WhiteElo "2616"]
[BlackElo "2492"]
[Annotator "RC"]
[PlyCount "47"]
[EventDate "2019.12.15"]
[EventType "swiss"]
[EventCountry "CRO"]
[SourceTitle "playchess.com"]
[Source "ChessBase"]
[SourceQuality "1"]
[TimeControl "40/5400+30:1800+30"]

1. e4 {[%emt 0:00:30]} c5 {[%emt 0:00:30]} 2. Nf3 {[%emt 0:00:00]} e6 {[%emt 0:00:00]} 3. g3 {[%emt 0:00:00]} d5 {[%emt 0:00:00]} 4. exd5 {[%emt 0:01:30]} exd5 {[%emt 0:00:30]} 5. d4 {[%emt 0:00:30]} Nc6 {[%emt 0:03:30]} 6. Bg2 {[%emt 0:00:30]} Bg4 {[%emt 0:01:30]} 7. O-O {[%emt 0:01:30]} cxd4 {[%emt 0:00:30]} 8. h3 {[%emt 0:00:30]} Bxf3 {[%emt 0:00:30]} 9. Qxf3 {[%emt 0:00:00]} Nf6 {[%emt 0:00:30]} 10. Bg5 {[%emt 0:00:00]} Be7 {[%emt 0:00:00]} 11. Bxf6 {[%emt 0:02:30]} Bxf6 {[%emt 0:00:00]} 12. Re1+ {[%emt 0:00:30]} Ne7 {[%emt 0:00:30]} 13. Qxd5 {[%emt 0:00:30]} Qxd5 {[%emt 0:00:00]} 14. Bxd5 {[%emt 0:00:00]} O-O {[%emt 0:00:00]} 15. Be4 {[%emt 0:00:00]} Rfd8 {[%emt 0:02:30]} 16. Nd2 {[%emt 0:02:30]} Rac8 {[%emt 0:00:30]} 17. Nf3 {[%emt 0:22:30]} g6 {[%emt 0:01:30]} 18. Rad1 {[%emt 0:05:30]} Nc6 {[%emt 0:07:30]} 19. Re2 {[%emt 0:08:30]} Kf8 {[%emt 0:04:30]} 20. Kf1 {[%emt 0:05:30]} h5 {[%emt 0:07:30]} 21. h4 {[%emt 0:00:30]} b5 {[%emt 0:11:30]} 22. a3 {[%emt 0:15:30]} a5 {[%emt 0:02:30]} 23. Bxc6 {[%emt 0:14:01]} Rxc6 {[%emt 0:00:30]} 24. Rdd2 {[%emt 0:00:49]} 1/2-1/2

[Event "26th Zadar Open 2019"]
[Site "Zadar"]
[Date "2019.12.21"]
[Round "8.5"]
[White "Galperin, Platon"]
[Black "Yeoh, Li Tian"]
[Result "1-0"]
[ECO "A67"]
[WhiteElo "2462"]
[BlackElo "2530"]
[Annotator "ChessBase"]
[PlyCount "63"]
[EventDate "2019.12.15"]
[EventType "swiss"]
[EventCountry "CRO"]
[SourceTitle "playchess.com"]
[Source "ChessBase"]
[SourceQuality "1"]
[TimeControl "40/5400+30:1800+30"]

1. d4 {[%emt 0:00:30]} Nf6 {[%emt 0:00:30]} 2. c4 {[%emt 0:00:00]} c5 {[%emt 0:00:00]} 3. d5 {[%emt 0:00:00]} e6 {[%emt 0:00:00]} 4. Nc3 {[%emt 0:00:00]} exd5 {[%emt 0:00:30]} 5. cxd5 {[%emt 0:00:00]} d6 {[%emt 0:00:00]} 6. e4 {[%emt 0:00:00]} g6 {[%emt 0:00:00]} 7. f4 {[%emt 0:00:00]} Bg7 {[%emt 0:00:30]} 8. Bb5+ {[%emt 0:00:30]} Nfd7 {[%emt 0:00:30]} 9. Be2 {[%emt 0:00:00]} O-O {[%emt 0:09:30]} 10. Nf3 {[%emt 0:00:00]} Re8 {[%emt 0:00:00]} 11. O-O {[%emt 0:00:30]} b6 {[%emt 0:07:00]} 12. f5 {[%emt 0:06:30]} Nf6 {[%emt 0:10:30]} 13. fxg6 {[%emt 0:23:30]} hxg6 {[%emt 0:11:30]} 14. Bg5 {[%emt 0:00:30]} Nbd7 {[%emt 0:05:30]} 15. Qe1 {[%emt 0:04:30]} Nf8 {[%emt 0:07:30]} 16. e5 {[%emt 0:25:30]} dxe5 {[%emt 0:00:30]} 17. Bb5 {[%emt 0:01:30]} Bd7 {[%emt 0:02:30]} 18. Bxd7 {[%emt 0:00:00]} N8xd7 {[%emt 0:17:30]} 19. Qh4 {[%emt 0:05:00]} Qc7 {[%emt 0:13:27]} 20. Nb5 {[%emt 0:10:30]} Qb7 {[%emt 0:00:48]} 21. Rad1 {[%emt 0:00:30]} e4 {[%emt 0:07:43]} 22. Ne1 {[%emt 0:11:07]} Nh7 {[%emt 0:02:21]} 23. Rxf7 {[%emt 0:00:31]} Nxg5 {[%emt 0:00:32]} 24. Qxg5 {[%emt 0:00:24]} Rf8 {[%emt 0:01:24]} 25. Nd6 {[%emt 0:01:41]} Qc7 {[%emt 0:01:14]} 26. Qxg6 {[%emt 0:01:00]} Rxf7 {[%emt 0:00:06]} 27. Qxf7+ {[%emt 0:00:09]} Kh8 {[%emt 0:00:38]} 28. Nf5 {[%emt 0:03:38]} Be5 {[%emt 0:00:05]} 29. d6 {[%emt 0:00:35]} Qd8 {[%emt 0:00:03]} 30. Ne7 {[%emt 0:00:07]} Bg7 {[%emt 0:00:26]} 31. Rd5 {[%emt 0:00:31]} Nf6 {[%emt 0:00:04]} 32. Rg5 {[%emt 0:00:14]} 1-0

[Event "26th Zadar Open 2019"]
[Site "Zadar"]
[Date "2019.12.21"]
[Round "8.6"]
[White "Stany, G.A."]
[Black "Rudolf, Michal"]
[Result "1-0"]
[ECO "B11"]
[WhiteElo "2526"]
[BlackElo "2328"]
[Annotator "ChessBase"]
[PlyCount "83"]
[EventDate "2019.12.15"]
[EventType "swiss"]
[EventCountry "CRO"]
[SourceTitle "playchess.com"]
[Source "ChessBase"]
[SourceQuality "1"]
[TimeControl "40/5400+30:1800+30"]

1. e4 {[%emt 0:00:30]} c6 {[%emt 0:00:30]} 2. Nc3 {[%emt 0:00:00]} d5 {[%emt 0:00:00]} 3. Nf3 {[%emt 0:00:00]} Bg4 {[%emt 0:00:00]} 4. h3 {[%emt 0:00:00]} Bxf3 {[%emt 0:00:30]} 5. Qxf3 {[%emt 0:00:00]} e6 {[%emt 0:00:30]} 6. d3 {[%emt 0:00:30]} Nf6 {[%emt 0:00:00]} 7. Bd2 {[%emt 0:00:00]} Nbd7 {[%emt 0:00:00]} 8. g4 {[%emt 0:00:00]} g6 {[%emt 0:01:30]} 9. Qg3 {[%emt 0:16:30]} Qb6 {[%emt 0:05:30]} 10. O-O-O {[%emt 0:02:30]} Bg7 {[%emt 0:02:30]} 11. Bg2 {[%emt 0:02:30]} O-O-O {[%emt 0:01:30]} 12. f4 {[%emt 0:14:30]} Ne8 {[%emt 0:09:30]} 13. e5 {[%emt 0:05:30]} Nc7 {[%emt 0:02:30]} 14. Rde1 {[%emt 0:08:30]} Nb5 {[%emt 0:03:30]} 15. Nxb5 {[%emt 0:11:30]} Qxb5 {[%emt 0:00:30]} 16. h4 {[%emt 0:00:30]} Bf8 {[%emt 0:08:30]} 17. f5 {[%emt 0:02:30]} Bb4 {[%emt 0:04:30]} 18. c3 {[%emt 0:00:30]} Be7 {[%emt 0:01:30]} 19. d4 {[%emt 0:10:30]} c5 {[%emt 0:04:30]} 20. Kb1 {[%emt 0:00:30]} Nb6 {[%emt 0:06:30]} 21. Ka1 {[%emt 0:00:30]} Nc4 {[%emt 0:11:30]} 22. Bc1 {[%emt 0:00:00]} cxd4 {[%emt 0:00:00]} 23. cxd4 {[%emt 0:00:00]} Qb6 {[%emt 0:00:00]} 24. Rd1 {[%emt 0:00:30]} Kb8 {[%emt 0:02:30]} 25. Qb3 {[%emt 0:05:11]} Qxb3 {[%emt 0:02:30]} 26. axb3 {[%emt 0:00:04]} Na5 {[%emt 0:00:30]} 27. Rd3 {[%emt 0:02:13]} Bb4 {[%emt 0:02:30]} 28. Rf1 {[%emt 0:02:52]} Rc8 {[%emt 0:02:30]} 29. Kb1 {[%emt 0:00:10]} Be7 {[%emt 0:02:30]} 30. fxe6 {[%emt 0:02:52]} fxe6 {[%emt 0:00:30]} 31. g5 {[%emt 0:00:03]} Rhf8 {[%emt 0:02:30]} 32. Rxf8 {[%emt 0:01:13]} Bxf8 {[%emt 0:01:30]} 33. Bh3 {[%emt 0:01:28]} Rc6 {[%emt 0:00:30]} 34. Bd2 {[%emt 0:00:49]} b6 {[%emt 0:00:30]} 35. Rf3 {[%emt 0:00:59]} Be7 {[%emt 0:00:30]} 36. Rf7 {[%emt 0:06:27]} Nxb3 {[%emt 0:00:30]} 37. Bc3 {[%emt 0:00:08]} Bd8 {[%emt 0:01:30]} 38. Rxh7 {[%emt 0:00:22]} a5 {[%emt 0:02:30]} 39. h5 {[%emt 0:00:36]} b5 {[%emt 0:06:05]} 40. hxg6 {[%emt 0:00:37]} b4 {[%emt 0:00:06]} 41. g7 {[%emt 0:30:04]} bxc3 {[%emt 0:30:05]} 42. bxc3 {[%emt 0:00:03]} 1-0

[Event "26th Zadar Open 2019"]
[Site "Zadar"]
[Date "2019.12.21"]
[Round "8.7"]
[White "Dev, Shah"]
[Black "Rogic, Davor"]
[Result "0-1"]
[ECO "D16"]
[WhiteElo "2242"]
[BlackElo "2485"]
[Annotator "ChessBase"]
[PlyCount "82"]
[EventDate "2019.12.15"]
[EventType "swiss"]
[EventCountry "CRO"]
[SourceTitle "playchess.com"]
[Source "ChessBase"]
[SourceQuality "1"]
[TimeControl "40/5400+30:1800+30"]

1. d4 {[%emt 0:00:30]} d5 {[%emt 0:00:30]} 2. c4 {[%emt 0:00:30]} c6 {[%emt 0:00:00]} 3. Nc3 {[%emt 0:00:30]} Nf6 {[%emt 0:00:00]} 4. Nf3 {[%emt 0:00:00]} dxc4 {[%emt 0:00:00]} 5. a4 {[%emt 0:00:00]} Na6 {[%emt 0:00:00]} 6. e3 {[%emt 0:00:30]} Bg4 {[%emt 0:00:30]} 7. Bxc4 {[%emt 0:00:00]} e6 {[%emt 0:00:30]} 8. h3 {[%emt 0:01:00]} Bh5 {[%emt 0:02:30]} 9. O-O {[%emt 0:00:30]} Nb4 {[%emt 0:00:30]} 10. Qe2 {[%emt 0:00:30]} Be7 {[%emt 0:01:30]} 11. Rd1 {[%emt 0:00:30]} Nd7 {[%emt 0:00:30]} 12. Bb3 {[%emt 0:15:30]} O-O {[%emt 0:05:30]} 13. g4 {[%emt 0:00:30]} Bg6 {[%emt 0:00:30]} 14. e4 {[%emt 0:00:00]} Qc7 {[%emt 0:20:30]} 15. h4 {[%emt 0:06:00]} h6 {[%emt 0:05:30]} 16. Kh1 {[%emt 0:04:30]} c5 {[%emt 0:08:30]} 17. h5 {[%emt 0:07:30]} Bh7 {[%emt 0:01:30]} 18. d5 {[%emt 0:08:30]} exd5 {[%emt 0:02:30]} 19. Bxd5 {[%emt 0:02:30]} Nb6 {[%emt 0:05:30]} 20. g5 {[%emt 0:04:30]} N6xd5 {[%emt 0:04:30]} 21. Nxd5 {[%emt 0:00:30]} Nxd5 {[%emt 0:00:00]} 22. Rxd5 {[%emt 0:00:30]} Qc8 {[%emt 0:12:00]} 23. Ng1 {[%emt 0:07:30]} Qe6 {[%emt 0:05:30]} 24. f3 {[%emt 0:00:30]} Rad8 {[%emt 0:00:30]} 25. Rxd8 {[%emt 0:01:30]} Rxd8 {[%emt 0:00:30]} 26. gxh6 {[%emt 0:00:30]} gxh6 {[%emt 0:03:52]} 27. Bf4 {[%emt 0:02:30]} Bf8 {[%emt 0:05:20]} 28. Qg2+ {[%emt 0:04:30]} Kh8 {[%emt 0:01:11]} 29. Rc1 {[%emt 0:17:01]} b6 {[%emt 0:00:26]} 30. Ne2 {[%emt 0:04:41]} Bg7 {[%emt 0:02:37]} 31. Nc3 {[%emt 0:04:14]} Rd3 {[%emt 0:04:04]} 32. Rd1 {[%emt 0:03:36]} Rxd1+ {[%emt 0:02:42]} 33. Nxd1 {[%emt 0:00:08]} f5 {[%emt 0:00:22]} 34. e5 {[%emt 0:01:08]} Qc4 {[%emt 0:00:34]} 35. Bd2 {[%emt 0:03:29]} Qxa4 {[%emt 0:01:03]} 36. Qe2 {[%emt 0:01:09]} Qh4+ {[%emt 0:01:32]} 37. Kg2 {[%emt 0:00:01]} f4 {[%emt 0:01:02]} 38. e6 {[%emt 0:00:38]} Qg3+ {[%emt 0:00:55]} 39. Kf1 {[%emt 0:00:26]} Bd4 {[%emt 0:01:03]} 40. Be3 {[%emt 0:00:58]} fxe3 {[%emt 0:01:42]} 41. Nxe3 {[%emt 0:30:01]} Qh3+ {[%emt 0:30:24]} 0-1